fUSD/lending_fUSD_20250204
["ID","MTS","AMOUNT","RATE_DAILY","PERIOD"]
[351595743,1738651907571,-500.0,9.549e-05,2]
[351595744,1738651907581,-500.0,9.549e-05,2]
[351595745,1738651907590,-2189.52,9.549e-05,2]
[351595746,1738651907600,-500.0,9.549e-05,2]
[351595747,1738651907610,-1033.88,9.549e-05,2]
[351595748,1738651907619,-500.0,9.549e-05,2]
[351595749,1738651907630,-500.0,9.549e-05,2]
[351595750,1738651907639,-500.0,9.549e-05,2]
[351595751,1738651907649,-832.83,9.549e-05,2]
[351595752,1738651907659,-500.0,9.549e-05,2]
[351595753,1738651907668,-505.08,9.549e-05,2]
[351595754,1738651907678,-500.0,9.549e-05,2]
[351595755,1738651907687,-682.97,9.549e-05,2]
[351595756,1738651907697,-848.97,9.549e-05,2]
[351595757,1738651907706,-500.0,9.549e-05,2]
[351595758,1738651907716,-1302.8,9.549e-05,2]
[351595759,1738651907726,-500.0,9.549e-05,2]
[351595760,1738651907736,-1221.1,9.549e-05,2]
[351595761,1738651907746,-1301.56,9.549e-05,2]
[351595762,1738651907756,-500.0,9.549e-05,2]
[351595763,1738651907766,-869.74,9.549e-05,2]
[351595764,1738651907776,-1267.25,9.549e-05,2]
[351595765,1738651907785,-504.10259142,9.549e-05,2]
[351595766,1738651907796,-500.0,9.549e-05,2]
[351595767,1738651907807,-1350.38,9.549e-05,2]
[351595768,1738651907816,-1376.69,9.549e-05,2]
[351595769,1738651907825,-765.49,9.549e-05,2]
[351595770,1738651907834,-500.0,9.549e-05,2]
[351595771,1738651907843,-500.0,9.549e-05,2]
[351595772,1738651907852,-1594.6,9.549e-05,2]
[351595773,1738651907863,-1384.45,9.549e-05,2]
[351595774,1738651907873,-2328.86,9.549e-05,2]
[351595775,1738651907883,-662.7,9.549e-05,2]
[351595776,1738651907893,-500.0,9.549e-05,2]
[351595777,1738651907904,-1335.29,9.549e-05,2]
[351595778,1738651907913,-500.0,9.549e-05,2]
[351595779,1738651907924,-500.0,9.549e-05,2]
[351595780,1738651907934,-659.98,9.549e-05,2]
[351595781,1738651907943,-502.77767544,9.549e-05,2]
[351595782,1738651907954,-2449.75,9.549e-05,2]
[351595783,1738651907963,-612.87,9.549e-05,2]
[351595784,1738651907973,-1097.71,9.549e-05,2]
[351595785,1738651907982,-710.91,9.549e-05,2]
[351595786,1738651907991,-543.58,9.549e-05,2]
[351595787,1738651908001,-500.0,9.549e-05,2]
[351595788,1738651908011,-1882.1,9.549e-05,2]
[351595789,1738651908021,-500.0,9.549e-05,2]
[351595790,1738651908032,-2099.03,9.549e-05,2]
[351595791,1738651908045,-698.47,9.549e-05,2]
[351595792,1738651908055,-500.0,9.549e-05,2]
[351595793,1738651908065,-500.0,9.549e-05,2]
[351595794,1738651908075,-502.1799375,9.549e-05,2]
[351595795,1738651908085,-613.08,9.549e-05,2]
[351595796,1738651908095,-1113.29,9.549e-05,2]
[351595797,1738651908105,-500.0,9.549e-05,2]
[351595798,1738651908118,-500.0,9.549e-05,2]
[351595799,1738651908128,-1797.38,9.549e-05,2]
[351595800,1738651908138,-500.0,9.549e-05,2]
[351595801,1738651908148,-739.28,9.549e-05,2]
[351595802,1738651908160,-500.0,9.549e-05,2]
[351595803,1738651908170,-1290.62,9.549e-05,2]
[351595804,1738651908179,-500.0,9.549e-05,2]
[351595805,1738651908190,-500.0,9.549e-05,2]
[351595806,1738651908201,-500.0,9.549e-05,2]
[351595807,1738651908210,-500.0,9.549e-05,2]
[351595808,1738651908221,-504.70241222,9.549e-05,2]
[351595809,1738651908232,-1811.38,9.549e-05,2]
[351595810,1738651908242,-631.18,9.549e-05,2]
[351595811,1738651908253,-1254.13,9.549e-05,2]
[351595812,1738651908263,-500.0,9.549e-05,2]
[351595813,1738651908272,-1097.17,9.549e-05,2]
[351595814,1738651908283,-504.76217403,9.549e-05,2]
[351595815,1738651908296,-991.82,9.549e-05,2]
[351595816,1738651908306,-500.0,9.549e-05,2]
[351595817,1738651908316,-500.0,9.549e-05,2]
[351595818,1738651908325,-504.87326998,9.549e-05,2]
[351595819,1738651908336,-627.77,9.549e-05,2]
[351595820,1738651908346,-500.0,9.549e-05,2]
[351595821,1738651908356,-1787.47,9.549e-05,2]
[351595822,1738651908366,-2221.8,9.549e-05,2]
[351595823,1738651908377,-804.27,9.549e-05,2]
[351595824,1738651908388,-1310.71,9.549e-05,2]
[351595825,1738651908398,-504.3233696,9.549e-05,2]
[351595826,1738651908408,-500.0,9.549e-05,2]
[351595827,1738651908419,-3296.39,9.549e-05,2]
[351595828,1738651908430,-505.99890215,9.549e-05,2]
[351595829,1738651908440,-562.33,9.549e-05,2]
[351595830,1738651908450,-500.0,9.549e-05,2]
[351595831,1738651908460,-790.63,9.549e-05,2]
[351595832,1738651908470,-1182.99,9.549e-05,2]
[351595833,1738651908480,-1297.64,9.549e-05,2]
[351595834,1738651908489,-774.54,9.549e-05,2]
[351595835,1738651908501,-727.93,9.549e-05,2]
[351595836,1738651908513,-500.0,9.549e-05,2]
[351595837,1738651908523,-504.0569734,9.549e-05,2]
[351595838,1738651908533,-1926.99,9.549e-05,2]
[351595839,1738651908545,-1409.12,9.549e-05,2]
[351595840,1738651908556,-500.0,9.549e-05,2]
[351595841,1738651908570,-1137.79,9.549e-05,2]
[351595842,1738651908580,-1967.91,9.549e-05,2]
[351595843,1738651908590,-389.5227136,9.549e-05,2]
[351595844,1738651908599,-500.0,9.549e-05,2]
[351595845,1738651908610,-500.0,9.549e-05,2]
[351595846,1738651908619,-1241.55,9.549e-05,2]
[351595847,1738651908629,-500.0,9.549e-05,2]
[351595848,1738651908639,-582.03,9.549e-05,2]
[351595849,1738651908649,-500.0,9.549e-05,2]
[351595850,1738651908659,-2472.38,9.549e-05,2]
[351595851,1738651908669,-500.0,9.549e-05,2]
[351595852,1738651908679,-503.6435854,9.549e-05,2]
[351595853,1738651908688,-551.09,9.549e-05,2]
[351595854,1738651908697,-1439.06,9.549e-05,2]
[351595855,1738651908707,-500.0,9.549e-05,2]
[351595856,1738651908717,-1487.13,9.549e-05,2]
[351595857,1738651908727,-500.0,9.549e-05,2]
[351595858,1738651908735,-1607.5,9.549e-05,2]
[351595859,1738651908745,-3353.26,9.549e-05,2]
[351595860,1738651908755,-500.0,9.549e-05,2]
[351595861,1738651908765,-1710.03,9.549e-05,2]
[351595862,1738651908774,-678.92,9.549e-05,2]
[351595863,1738651908783,-1755.84,9.549e-05,2]
[351595864,1738651908795,-2208.53,9.549e-05,2]
[351595865,1738651908805,-762.71,9.549e-05,2]
[351595866,1738651908816,-500.0,9.549e-05,2]
[351595867,1738651908826,-562.92,9.549e-05,2]
[351595868,1738651908836,-2000.55,9.549e-05,2]
[351595869,1738651908846,-521.56,9.549e-05,2]
[351595870,1738651908856,-1457.81,9.549e-05,2]
[351595871,1738651908866,-665.54,9.549e-05,2]
[351595872,1738651908877,-1064.1,9.549e-05,2]
[351595873,1738651908887,-500.0,9.549e-05,2]
[351595874,1738651908898,-3252.58,9.549e-05,2]
[351595875,1738651908908,-500.0,9.549e-05,2]
[351595876,1738651908919,-500.0,9.549e-05,2]
[351595877,1738651908930,-774.04,9.549e-05,2]
[351595878,1738651908942,-500.0,9.549e-05,2]
[351595879,1738651908953,-1356.21,9.549e-05,2]
[351595880,1738651908964,-500.0,9.549e-05,2]
[351595881,1738651908974,-500.0,9.549e-05,2]
[351595882,1738651908984,-1161.1,9.549e-05,2]
[351595883,1738651908995,-500.0,9.549e-05,2]
[351595884,1738651909005,-1271.77,9.549e-05,2]
[351595885,1738651909015,-1243.17,9.549e-05,2]
[351595886,1738651909024,-810.41,9.549e-05,2]
[351595887,1738651909035,-500.0,9.549e-05,2]
[351595888,1738651909045,-1701.57,9.549e-05,2]
[351595889,1738651909055,-500.0,9.549e-05,2]
[351595890,1738651909065,-1227.61,9.549e-05,2]
[351595891,1738651909075,-1258.33,9.549e-05,2]
[351595892,1738651909085,-533.93,9.549e-05,2]
[351595893,1738651909095,-500.0,9.549e-05,2]
[351595894,1738651909105,-1867.62,9.549e-05,2]
[351595895,1738651909118,-2414.87,9.549e-05,2]
[351595896,1738651909128,-1692.34,9.549e-05,2]
[351595897,1738651909139,-974.44,9.549e-05,2]
[351595898,1738651909150,-2119.85,9.549e-05,2]
[351595899,1738651909159,-500.0,9.549e-05,2]
[351595900,1738651909170,-500.0,9.549e-05,2]
[351595901,1738651909180,-608.12,9.549e-05,2]
[351595902,1738651909191,-500.0,9.549e-05,7]
[351595903,1738651909202,-500.0,9.549e-05,2]
[351595904,1738651909212,-706.35,9.549e-05,2]
[351595905,1738651909222,-980.64,9.549e-05,2]
[351595906,1738651909232,-557.68,9.549e-05,2]
[351595907,1738651909242,-1544.16,9.549e-05,2]
[351595908,1738651909252,-1127.81,9.549e-05,2]
[351595909,1738651909262,-962.28,9.549e-05,2]
[351595910,1738651909272,-500.0,9.549e-05,2]
[351595911,1738651909282,-842.89,9.549e-05,2]
[351595912,1738651909293,-583.68,9.549e-05,2]
[351595913,1738651909303,-880.05,9.549e-05,2]
[351595914,1738651909313,-1664.57,9.549e-05,2]
[351595915,1738651909323,-500.0,9.549e-05,2]
[351595916,1738651909333,-1460.87,9.549e-05,2]
[351595917,1738651909342,-537.15,9.549e-05,2]
[351595918,1738651909351,-2650.59,9.549e-05,2]
[351595919,1738651909363,-1032.75,9.549e-05,2]
[351595920,1738651909375,-501.91441407,9.55e-05,2]
[351595921,1738651909386,-500.0,9.55e-05,2]
[351595922,1738651909396,-501.95623001,9.55e-05,2]
[351595923,1738651909406,-170.3028757,9.55e-05,2]
[351595924,1738651909416,-500.0,9.55e-05,2]
[351595925,1738651909426,-1816.98,9.55e-05,2]
[351595926,1738651909436,-500.0,9.55e-05,2]
[351595927,1738651909446,-800.32,9.55e-05,2]
[351595928,1738651909456,-2661.74,9.55e-05,2]
[351595929,1738651909466,-3559.44,9.55e-05,2]
[351595930,1738651909475,-500.0,9.55e-05,2]
[351595931,1738651909485,-1000.2,9.55e-05,2]
[351595932,1738651909497,-1789.57,9.55e-05,2]
[351595933,1738651909509,-1346.06,9.55e-05,2]
[351595934,1738651909519,-500.0,9.55e-05,2]
[351595935,1738651909528,-500.0,9.55e-05,2]
[351595936,1738651909539,-500.0,9.55e-05,2]
[351595937,1738651909548,-1910.87,9.55e-05,2]
[351595938,1738651909558,-574.03,9.55e-05,2]
[351595939,1738651909569,-1533.37,9.55e-05,2]
[351595940,1738651909579,-1637.92,9.55e-05,2]
[351595941,1738651909590,-500.0,9.55e-05,2]
[351595942,1738651909600,-2100.89,9.55e-05,2]
[351595943,1738651909610,-1545.56,9.55e-05,2]
[351595944,1738651909620,-1220.82,9.55e-05,2]
[351595945,1738651909630,-1891.37,9.55e-05,2]
[351595946,1738651909640,-1353.58,9.55e-05,2]
[351595947,1738651909649,-500.0,9.55e-05,2]
[351595948,1738651909659,-1547.3,9.55e-05,2]
[351595949,1738651909668,-1928.93,9.55e-05,2]
[351595950,1738651909677,-951.36,9.55e-05,2]
[351595951,1738651909687,-1905.83,9.55e-05,2]
[351595952,1738651909697,-2772.81,9.55e-05,2]
[351595953,1738651909706,-1936.34,9.55e-05,2]
[351595954,1738651909716,-1218.2,9.55e-05,2]
[351595955,1738651909726,-760.65,9.55e-05,2]
[351595956,1738651909748,-1833.02,9.55e-05,2]
[351595957,1738651909768,-1760.21,9.55e-05,2]
[351595958,1738651909789,-1969.26,9.55e-05,2]
[351595959,1738651909800,-557.17,9.55e-05,2]
[351595960,1738651909809,-2207.04,9.55e-05,2]
[351595961,1738651909819,-1067.3,9.55e-05,2]
[351595962,1738651909829,-1711.85,9.55e-05,2]
[351595963,1738651909840,-606.13,9.55e-05,2]
[351595964,1738651909851,-1026.18,9.55e-05,2]
[351595965,1738651909860,-579.86,9.55e-05,2]
[351595966,1738651909869,-991.53,9.55e-05,2]
[351595967,1738651909878,-1828.91,9.55e-05,2]
[351595968,1738651909889,-1160.19,9.55e-05,2]
[351595969,1738651909899,-1961.27,9.55e-05,2]
[351595970,1738651909909,-533.98979845,9.551e-05,2]
[351595971,1738651909919,-503.46,9.551e-05,2]
[351595972,1738651909929,-500.0,9.551e-05,2]
[351595973,1738651909939,-505.41386426,9.551e-05,2]
[351595974,1738651909948,-500.0,9.551e-05,2]
[351595975,1738651909958,-637.81,9.551e-05,2]
[351595976,1738651909967,-417.38235217,9.551e-05,2]
[351595977,1738651909977,-500.0,9.551e-05,2]
[351595978,1738651909988,-500.0,9.551e-05,2]
[351595979,1738651909998,-848.3,9.551e-05,2]
[351595980,1738651910009,-503.31674823,9.551e-05,2]
[351595981,1738651910023,-500.0,9.551e-05,2]
[351595982,1738651910034,-500.0,9.551e-05,2]
[351595983,1738651910045,-503.60834842,9.551e-05,2]
[351595984,1738651910054,-617.18,9.551e-05,2]
[351595985,1738651910064,-500.0,9.551e-05,2]
[351595986,1738651910074,-508.12,9.551e-05,2]
[351595987,1738651910086,-1325.81,9.551e-05,2]
[351595988,1738651910095,-500.0,9.551e-05,2]
[351595989,1738651910105,-667.07,9.551e-05,2]
[351595990,1738651910118,-505.90532076,9.551e-05,2]
[351595991,1738651910127,-500.0,9.551e-05,2]
[351595992,1738651910137,-1020.47,9.551e-05,2]
[351595993,1738651910146,-500.0,9.551e-05,2]
[351595994,1738651910157,-500.0,9.551e-05,2]
[351595995,1738651910167,-500.0,9.551e-05,2]
[351595996,1738651910176,-500.0,9.551e-05,2]
[351595997,1738651910186,-971.18,9.551e-05,2]
[351595998,1738651910196,-1055.22,9.551e-05,2]
[351595999,1738651910205,-601.82,9.551e-05,2]
[351596000,1738651910214,-500.0,9.551e-05,2]
[351596001,1738651910223,-584.0,9.551e-05,2]
[351596002,1738651910232,-500.0,9.551e-05,2]
[351596003,1738651910241,-664.68,9.551e-05,2]
[351596004,1738651910251,-693.7,9.551e-05,2]
[351596005,1738651910260,-500.0,9.551e-05,2]
[351596006,1738651910269,-503.23908938,9.551e-05,2]
[351596007,1738651910279,-500.0,9.551e-05,2]
[351596008,1738651910288,-910.68,9.551e-05,2]
[351596009,1738651910298,-500.0,9.551e-05,2]
[351596010,1738651910307,-949.48,9.551e-05,2]
[351596011,1738651910317,-649.65,9.551e-05,2]
[351596012,1738651910326,-504.54250273,9.551e-05,2]
[351596013,1738651910335,-737.64,9.551e-05,2]
[351596014,1738651910343,-500.0,9.551e-05,2]
[351596015,1738651910353,-585.58,9.551e-05,2]
[351596016,1738651910362,-500.0,9.551e-05,2]
[351596017,1738651910371,-500.0,9.551e-05,2]
[351596018,1738651910381,-500.0,9.551e-05,2]
[351596019,1738651910390,-500.0,9.551e-05,2]
[351596020,1738651910399,-502.67,9.551e-05,2]
[351596021,1738651910410,-500.0,9.551e-05,2]
[351596022,1738651910419,-708.74,9.551e-05,2]
[351596023,1738651910428,-621.2,9.551e-05,2]
[351596024,1738651910438,-1126.75,9.551e-05,2]
[351596025,1738651910447,-500.0,9.551e-05,2]
[351596026,1738651910457,-500.0,9.551e-05,2]
[351596027,1738651910466,-1267.09,9.551e-05,2]
[351596028,1738651910476,-500.0,9.551e-05,2]
[351596029,1738651910485,-1330.04,9.551e-05,2]
[351596030,1738651910495,-500.0,9.551e-05,2]
[351596031,1738651910504,-500.0,9.551e-05,2]
[351596032,1738651910683,-893.25,9.551e-05,2]
[351596033,1738651910692,-500.0,9.551e-05,2]
[351596034,1738651910702,-522.19,9.551e-05,2]
[351596035,1738651910711,-741.38,9.551e-05,2]
[351596036,1738651910721,-1262.08,9.551e-05,2]
[351596037,1738651910730,-500.0,9.551e-05,2]
[351596038,1738651910739,-500.0,9.551e-05,2]
[351596039,1738651910748,-503.00059111,9.551e-05,2]
[351596040,1738651910757,-649.6,9.551e-05,2]
[351596041,1738651910766,-1136.55,9.551e-05,2]
[351596042,1738651910775,-500.0,9.551e-05,2]
[351596043,1738651910784,-500.0,9.551e-05,2]
[351596044,1738651910795,-706.95,9.551e-05,2]
[351596045,1738651910805,-1345.97,9.551e-05,2]
[351596046,1738651910814,-631.78327099,9.551e-05,2]
[351596047,1738651910823,-502.63037334,9.551e-05,2]
[351596048,1738651910833,-500.0,9.551e-05,2]
[351596049,1738651910843,-500.0,9.551e-05,2]
[351596050,1738651910851,-507.13,9.551e-05,2]
[351596051,1738651910861,-732.49,9.551e-05,2]
[351596052,1738651910870,-1293.49,9.551e-05,2]
[351596053,1738651910879,-599.81109618,9.551e-05,2]
[351596054,1738651910888,-500.0,9.551e-05,2]
[351596055,1738651910897,-152.0,9.576e-05,7]
[351596056,1738651910907,-1000.0,9.583e-05,4]
[351596057,1738651910916,-163.95,9.589e-05,2]
[351596058,1738651910925,-1500.0,9.59e-05,2]
[351596059,1738651910934,-3000.0,9.59e-05,2]
[351596060,1738651910943,-267.267333,9.6e-05,2]
[351596061,1738651910953,-6128.3037819,9.618e-05,2]
[351596062,1738651910963,-2731.7,9.623e-05,2]
[351596063,1738651910972,-2597.79,9.623e-05,2]
[351596064,1738651910982,-1961.37,9.623e-05,2]
[351596065,1738651910992,-1780.96,9.623e-05,2]
[351596066,1738651911001,-792.21,9.623e-05,2]
[351596067,1738651911011,-500.0,9.623e-05,2]
[351596068,1738651911021,-3084.21,9.623e-05,2]
[351596069,1738651911031,-2443.54,9.623e-05,2]
[351596070,1738651911040,-1608.35,9.623e-05,2]
[351596071,1738651911049,-3326.15,9.623e-05,2]
[351596072,1738651911059,-3802.84,9.623e-05,2]
[351596073,1738651911069,-1058.09,9.623e-05,2]
[351596074,1738651911078,-3333.66,9.623e-05,2]
[351596075,1738651911087,-3287.56,9.623e-05,2]
[351596076,1738651911097,-3109.99,9.623e-05,2]
[351596077,1738651911107,-3571.14,9.623e-05,2]
[351596078,1738651911121,-3362.34,9.623e-05,2]
[351596079,1738651911130,-1037.7,9.623e-05,2]
[351596080,1738651911140,-3517.11,9.623e-05,2]
[351596081,1738651911149,-500.0,9.623e-05,2]
[351596082,1738651911160,-2639.94,9.623e-05,2]
[351596083,1738651911170,-665.18,9.623e-05,2]
[351596084,1738651911179,-1806.83,9.623e-05,2]
[351596085,1738651911189,-500.0,9.623e-05,2]
[351596086,1738651911199,-2956.17,9.623e-05,2]
[351596087,1738651911208,-634.35,9.623e-05,2]
[351596088,1738651911218,-1174.99,9.623e-05,2]
[351596089,1738651911227,-505.68,9.623e-05,2]
[351596090,1738651911237,-3489.81,9.623e-05,2]
[351596091,1738651911246,-2290.92,9.623e-05,2]
[351596092,1738651911256,-2152.55,9.623e-05,2]
[351596093,1738651911265,-1492.95,9.623e-05,2]
[351596094,1738651911277,-500.0,9.624e-05,2]
[351596095,1738651911289,-1386.25,9.624e-05,2]
[351596096,1738651911298,-573.38,9.624e-05,2]
[351596097,1738651911308,-1162.27,9.624e-05,2]
[351596098,1738651911318,-886.96,9.624e-05,2]
[351596099,1738651911327,-1960.06,9.624e-05,2]
[351596100,1738651911336,-500.0,9.624e-05,2]
[351596101,1738651911346,-1816.95,9.624e-05,2]
[351596102,1738651911355,-507.74,9.624e-05,2]
[351596103,1738651911364,-1692.58,9.624e-05,2]
[351596104,1738651911373,-500.0,9.624e-05,2]
[351596105,1738651911382,-1233.2,9.624e-05,2]
[351596106,1738651911391,-837.33,9.624e-05,2]
[351596107,1738651911400,-213.04644224,9.624e-05,2]
[351596108,1738651911409,-1065.99,9.624e-05,2]
[351596109,1738651911419,-1129.84,9.624e-05,2]
[351596110,1738651911428,-1504.93,9.624e-05,2]
[351596111,1738651911437,-1321.61,9.624e-05,2]
[351596112,1738651911446,-1364.66,9.624e-05,2]
[351596113,1738651911455,-745.69,9.624e-05,2]
[351596114,1738651911464,-1579.1,9.624e-05,2]
[351596115,1738651911474,-1941.246848,9.624e-05,2]
[351596116,1738651911483,-629.84,9.624e-05,2]
[351596117,1738651911492,-1596.8,9.624e-05,2]
[351596118,1738651911502,-155.639737,9.624e-05,2]
[351596119,1738651911511,-500.0,9.624e-05,2]
[351596120,1738651911521,-986.75,9.624e-05,2]
[351596121,1738651911530,-879.57,9.624e-05,2]
[351596122,1738651911540,-500.0,9.624e-05,2]
[351596123,1738651911550,-628.73,9.624e-05,2]
[351596124,1738651911561,-500.0,9.624e-05,2]
[351596125,1738651911570,-1927.353361,9.624e-05,2]
[351596126,1738651911580,-500.0,9.624e-05,2]
[351596127,1738651911589,-628.63,9.624e-05,2]
[351596128,1738651911598,-1061.5,9.624e-05,2]
[351596129,1738651911607,-720.77,9.624e-05,2]
[351596130,1738651911616,-1583.49,9.624e-05,2]
[351596131,1738651911625,-1268.29,9.624e-05,2]
[351596132,1738651911635,-500.0,9.624e-05,2]
[351596133,1738651911644,-839.48,9.624e-05,2]
[351596134,1738651911653,-1688.73,9.624e-05,2]
[351596135,1738651911663,-1876.72,9.624e-05,2]
[351596136,1738651911672,-802.61,9.624e-05,2]
[351596137,1738651911681,-610.52,9.624e-05,2]
[351596138,1738651911691,-1840.23,9.624e-05,2]
[351596139,1738651911700,-622.05,9.624e-05,2]
[351596140,1738651911710,-1395.09,9.624e-05,2]
[351596141,1738651911719,-1984.41,9.624e-05,2]
[351596142,1738651911728,-500.0,9.624e-05,2]
[351596143,1738651911738,-573.41,9.624e-05,2]
[351596144,1738651911747,-500.0,9.624e-05,2]
[351596145,1738651911756,-500.0,9.624e-05,2]
[351596146,1738651911766,-702.06,9.624e-05,2]
[351596147,1738651911775,-1107.58,9.624e-05,2]
[351596148,1738651911785,-500.0,9.624e-05,2]
[351596149,1738651911800,-500.0,9.624e-05,2]
[351596150,1738651911810,-500.0,9.624e-05,2]
[351596151,1738651911820,-1023.87,9.624e-05,2]
[351596152,1738651911831,-257.33329735,9.624e-05,2]
[351596153,1738651911841,-2235.71,9.624e-05,2]
[351596154,1738651911851,-500.0,9.624e-05,2]
[351596155,1738651911861,-864.57,9.624e-05,2]
[351596156,1738651911871,-152.907822,9.624e-05,2]
[351596157,1738651911883,-1442.14,9.624e-05,2]
[351596158,1738651911893,-1526.09,9.624e-05,2]
[351596159,1738651911903,-162.6920466,9.624e-05,2]
[351596160,1738651911912,-749.13,9.624e-05,2]
[351596161,1738651911922,-871.17,9.624e-05,2]
[351596162,1738651911932,-1146.18,9.624e-05,2]
[351596163,1738651911943,-662.91,9.624e-05,2]
[351596164,1738651911953,-500.0,9.624e-05,2]
[351596165,1738651911963,-1009.64,9.624e-05,2]
[351596166,1738651911980,-2267.45,9.624e-05,2]
[351596167,1738651911999,-656.52,9.624e-05,2]
[351596168,1738651912017,-500.0,9.624e-05,2]
[351596169,1738651912037,-541.89,9.624e-05,2]
[351596170,1738651912058,-736.13,9.624e-05,2]
[351596171,1738651912078,-1760.16,9.624e-05,2]
[351596172,1738651912097,-2409.33,9.624e-05,2]
[351596173,1738651912119,-1852.54,9.624e-05,2]
[351596174,1738651912141,-2838.45,9.624e-05,2]
[351596175,1738651912158,-528.53,9.624e-05,2]
[351596176,1738651912178,-545.79,9.624e-05,2]
[351596177,1738651912193,-2890.01,9.624e-05,2]
[351596178,1738651912213,-500.0,9.624e-05,2]
[351596179,1738651912226,-2478.82,9.624e-05,2]
[351596180,1738651912245,-500.0,9.624e-05,2]
[351596181,1738651912259,-500.0,9.624e-05,2]
[351596182,1738651912276,-942.69,9.624e-05,2]
[351596183,1738651912295,-1246.43,9.624e-05,2]
[351596184,1738651912310,-500.0,9.624e-05,2]
[351596185,1738651912326,-2635.78,9.624e-05,2]
[351596186,1738651912341,-1761.95,9.624e-05,2]
[351596187,1738651912357,-793.19,9.624e-05,2]
[351596188,1738651912372,-2601.96,9.624e-05,2]
[351596189,1738651912387,-2705.26,9.624e-05,2]
[351596190,1738651912403,-1478.32,9.624e-05,2]
[351596191,1738651912417,-500.0,9.624e-05,2]
[351596192,1738651912432,-2173.93,9.624e-05,2]
[351596193,1738651912448,-2878.08,9.624e-05,2]
[351596194,1738651912464,-1170.31,9.624e-05,2]
[351596195,1738651912479,-500.0,9.624e-05,2]
[351596196,1738651912494,-2206.62,9.624e-05,2]
[351596197,1738651912509,-533.56,9.624e-05,2]
[351596198,1738651912523,-1881.39,9.624e-05,2]
[351596199,1738651912538,-2920.46,9.624e-05,2]
[351596200,1738651912559,-699.93,9.624e-05,2]
[351596201,1738651912575,-2040.45,9.624e-05,2]
[351596202,1738651912590,-500.0,9.624e-05,2]
[351596203,1738651912605,-2227.02,9.624e-05,2]
[351596204,1738651912620,-614.25,9.624e-05,2]
[351596205,1738651912634,-779.73,9.624e-05,2]
[351596206,1738651912648,-2094.99,9.624e-05,2]
[351596207,1738651912664,-1294.54,9.624e-05,2]
[351596208,1738651912679,-3429.21,9.624e-05,2]
[351596209,1738651912694,-500.0,9.624e-05,2]
[351596210,1738651912710,-2303.31,9.624e-05,2]
[351596211,1738651912725,-500.0,9.624e-05,2]
[351596212,1738651912739,-500.0,9.624e-05,2]
[351596213,1738651912754,-2519.6,9.624e-05,2]
[351596214,1738651912768,-596.06,9.624e-05,2]
[351596215,1738651912784,-540.23,9.624e-05,2]
[351596216,1738651912799,-3292.26,9.624e-05,2]
[351596217,1738651912814,-2116.61,9.624e-05,2]
[351596218,1738651912828,-4613.87,9.624e-05,2]
[351596219,1738651912843,-1583.36,9.624e-05,2]
[351596220,1738651912857,-3463.94,9.624e-05,2]
[351596221,1738651912870,-723.79,9.624e-05,2]
[351596222,1738651912885,-1828.01,9.624e-05,2]
[351596223,1738651912900,-500.0,9.624e-05,2]
[351596224,1738651912915,-2319.2,9.624e-05,2]
[351596225,1738651912930,-3655.1,9.624e-05,2]
[351596226,1738651912944,-212.69,9.624e-05,2]
[351596227,1738651912960,-500.0,9.624e-05,2]
[351596228,1738651912976,-2342.96,9.624e-05,2]
[351596229,1738651912991,-3953.69,9.624e-05,2]
[351596230,1738651913005,-1102.3,9.624e-05,2]
[351596231,1738651913021,-385.38035878,9.624e-05,2]
[351596232,1738651913037,-687.18,9.624e-05,2]
[351596233,1738651913055,-1381.74,9.624e-05,2]
[351596234,1738651913070,-500.0,9.624e-05,2]
[351596235,1738651913085,-2821.45,9.624e-05,2]
[351596236,1738651913100,-3735.43,9.624e-05,2]
[351596237,1738651913117,-500.0,9.624e-05,2]
[351596238,1738651913133,-578.47,9.624e-05,2]
[351596239,1738651913148,-4039.67,9.624e-05,2]
[351596240,1738651913164,-7208.32,9.624e-05,2]
[351596241,1738651913180,-500.0,9.624e-05,2]
[351596242,1738651913196,-4132.64,9.624e-05,2]